[Event "Grandmaster Triathlon - Blitz (GM1)"]
[Site "Biel, Switzerland"]
[Date "2026.07.19"]
[Round "1.1"]
[White "Martinez Alcantara, Jose Eduardo"]
[Black "Suleymanli, Aydin"]
[Result "0-1"]
[TimeControl "3 min + 2 sec"]
[WhiteTitle "-"]
[BlackTitle "-"]
[WhiteFideId "3805662"]
[BlackFideId "13413937"]
[WhiteElo "2641"]
[BlackElo "2559"]

1. c4 {[%clk 00:03:03]} {[%emt 00:00:48]} Nf6 {[%clk 00:03:04]} 2. g3 {[%clk
00:03:05]} e6 {[%clk 00:03:03]} {[%emt 00:00:03]} 3. Bg2 {[%clk 00:03:06]} d5
{[%clk 00:03:04]} 4. Nf3 {[%clk 00:03:07]} dxc4 {[%clk 00:03:05]} {[%emt
00:00:01]} 5. Qa4+ {[%clk 00:03:07]} {[%emt 00:00:01]} Bd7 {[%clk 00:03:04]}
{[%emt 00:00:03]} 6. Qxc4 {[%clk 00:03:08]} {[%emt 00:00:01]} c5 {[%clk
00:03:05]} {[%emt 00:00:01]} 7. Ne5 {[%clk 00:03:09]} {[%emt 00:00:01]} Qc8
{[%clk 00:03:06]} 8. Qd3 {[%clk 00:03:03]} {[%emt 00:00:08]} Nc6 {[%clk
00:03:07]} {[%emt 00:00:01]} 9. Nxd7 {[%clk 00:03:03]} {[%emt 00:00:02]} Nxd7
{[%clk 00:03:08]} 10. O-O {[%clk 00:03:02]} {[%emt 00:00:03]} Be7 {[%clk
00:03:09]} {[%emt 00:00:01]} 11. Nc3 {[%clk 00:03:04]} O-O {[%clk 00:03:09]}
{[%emt 00:00:02]} 12. b3 {[%clk 00:03:03]} {[%emt 00:00:02]} Rd8 {[%clk
00:03:08]} {[%emt 00:00:03]} 13. Qc2 {[%clk 00:02:58]} {[%emt 00:00:07]} Qc7
{[%clk 00:03:02]} {[%emt 00:00:09]} 14. Bb2 {[%clk 00:02:59]} {[%emt 00:00:01]}
Rac8 {[%clk 00:03:03]} {[%emt 00:00:01]} 15. Rac1 {[%clk 00:03:00]} Qa5 {[%clk
00:03:04]} {[%emt 00:00:01]} 16. Rfd1 {[%clk 00:02:57]} {[%emt 00:00:04]} Bf6
{[%clk 00:02:59]} {[%emt 00:00:07]} 17. Qb1 {[%clk 00:02:57]} {[%emt 00:00:02]}
h6 {[%clk 00:02:58]} {[%emt 00:00:03]} 18. d3 {[%clk 00:02:42]} {[%emt
00:00:17]} Rc7 {[%clk 00:02:31]} {[%emt 00:00:29]} 19. Kf1 {[%clk 00:02:38]}
{[%emt 00:00:06]} Nd4 {[%clk 00:02:22]} {[%emt 00:00:11]} 20. Ne4 {[%clk
00:02:34]} {[%emt 00:00:06]} Be5 {[%clk 00:02:14]} {[%emt 00:00:10]} 21. Nd2
{[%clk 00:02:09]} {[%emt 00:00:27]} Bf6 {[%clk 00:02:05]} {[%emt 00:00:11]} 22.
Ne4 {[%clk 00:01:43]} {[%emt 00:00:28]} Be5 {[%clk 00:02:03]} {[%emt 00:00:03]}
23. h4 {[%clk 00:01:16]} {[%emt 00:00:29]} Qb6 {[%clk 00:01:51]} {[%emt
00:00:14]} 24. Bc3 {[%clk 00:01:00]} {[%emt 00:00:18]} Nb5 {[%clk 00:01:36]}
{[%emt 00:00:17]} 25. Bxe5 {[%clk 00:01:01]} {[%emt 00:00:02]} Nxe5 {[%clk
00:01:36]} {[%emt 00:00:01]} 26. Qb2 {[%clk 00:01:02]} {[%emt 00:00:01]} Nd7
{[%clk 00:01:29]} {[%emt 00:00:09]} 27. Rd2 {[%clk 00:01:01]} {[%emt 00:00:03]}
Nd4 {[%clk 00:01:24]} {[%emt 00:00:06]} 28. Kg1 {[%clk 00:00:42]} {[%emt
00:00:21]} Ne5 {[%clk 00:01:15]} {[%emt 00:00:11]} 29. Rdd1 {[%clk 00:00:33]}
{[%emt 00:00:11]} c4 {[%clk 00:01:09]} {[%emt 00:00:08]} 30. e3 {[%clk
00:00:11]} {[%emt 00:00:24]} Nxd3 {[%clk 00:01:07]} {[%emt 00:00:04]} 31. Rxd3
{[%clk 00:00:07]} {[%emt 00:00:06]} cxd3 {[%clk 00:01:08]} {[%emt 00:00:01]} 32.
exd4 {[%clk 00:00:09]} Qxd4 {[%clk 00:01:03]} {[%emt 00:00:06]} 33. Qb1 {[%clk
00:00:05]} {[%emt 00:00:06]} Rxc1+ {[%clk 00:00:58]} {[%emt 00:00:07]} 34. Qxc1
{[%clk 00:00:07]} d2 {[%clk 00:00:59]} {[%emt 00:00:02]} 35. Qd1 {[%clk
00:00:08]} Qb2 {[%clk 00:01:00]} {[%emt 00:00:01]} 36. Bf3 {[%clk 00:00:08]}
{[%emt 00:00:02]} Qxa2 {[%clk 00:00:59]} {[%emt 00:00:03]} 37. Kg2 {[%clk
00:00:08]} {[%emt 00:00:02]} a5 {[%clk 00:00:55]} {[%emt 00:00:06]} 38. Nc5
{[%clk 00:00:09]} {[%emt 00:00:02]} b5 {[%clk 00:00:54]} {[%emt 00:00:04]} 39.
Bh5 {[%clk 00:00:06]} {[%emt 00:00:05]} Qb2 {[%clk 00:00:40]} {[%emt 00:00:15]}
40. Ne4 {[%clk 00:00:07]} {[%emt 00:00:01]} Qd4 {[%clk 00:00:39]} {[%emt
00:00:02]} 41. Bf3 {[%clk 00:00:04]} {[%emt 00:00:05]} a4 {[%clk 00:00:40]}
{[%emt 00:00:01]} 42. bxa4 {[%clk 00:00:05]} {[%emt 00:00:01]} bxa4 {[%clk
00:00:41]} 0-1

[Event "Grandmaster Triathlon - Blitz (GM1)"]
[Site "Biel, Switzerland"]
[Date "2026.07.19"]
[Round "1.2"]
[White "Le, Quang Liem"]
[Black "Erdogmus, Yagiz Kaan"]
[Result "1/2-1/2"]
[TimeControl "3 min + 2 sec"]
[WhiteTitle "-"]
[BlackTitle "-"]
[WhiteFideId "12401137"]
[BlackFideId "44599790"]
[WhiteElo "2690"]
[BlackElo "2546"]

1. d4 {[%clk 00:03:03]} Nf6 {[%clk 00:03:04]} 2. Nf3 {[%clk 00:03:04]} g6
{[%clk 00:03:01]} {[%emt 00:00:05]} 3. c4 {[%clk 00:03:05]} {[%emt 00:00:01]}
Bg7 {[%clk 00:03:02]} {[%emt 00:00:02]} 4. g3 {[%clk 00:03:05]} {[%emt
00:00:02]} b6 {[%clk 00:03:02]} {[%emt 00:00:02]} 5. Bg2 {[%clk 00:03:05]}
{[%emt 00:00:01]} Bb7 {[%clk 00:03:03]} {[%emt 00:00:01]} 6. d5 {[%clk
00:03:05]} {[%emt 00:00:02]} Na6 {[%clk 00:03:03]} {[%emt 00:00:02]} 7. Nc3
{[%clk 00:03:05]} {[%emt 00:00:02]} Nc5 {[%clk 00:03:04]} {[%emt 00:00:01]} 8.
O-O {[%clk 00:03:03]} {[%emt 00:00:03]} O-O {[%clk 00:03:04]} {[%emt 00:00:02]}
9. Re1 {[%clk 00:02:50]} {[%emt 00:00:15]} e6 {[%clk 00:02:52]} {[%emt
00:00:14]} 10. e4 {[%clk 00:02:51]} {[%emt 00:00:01]} d6 {[%clk 00:02:53]}
{[%emt 00:00:01]} 11. Qc2 {[%clk 00:02:41]} {[%emt 00:00:12]} Re8 {[%clk
00:02:40]} {[%emt 00:00:16]} 12. Be3 {[%clk 00:02:29]} {[%emt 00:00:13]} a5
{[%clk 00:02:16]} {[%emt 00:00:26]} 13. Rad1 {[%clk 00:02:19]} {[%emt
00:00:12]} e5 {[%clk 00:02:08]} {[%emt 00:00:10]} 14. a3 {[%clk 00:02:20]} Ng4
{[%clk 00:01:42]} {[%emt 00:00:28]} 15. Bg5 {[%clk 00:02:06]} {[%emt 00:00:16]}
f6 {[%clk 00:01:42]} {[%emt 00:00:02]} 16. Bc1 {[%clk 00:02:07]} a4 {[%clk
00:01:39]} {[%emt 00:00:05]} 17. h3 {[%clk 00:02:08]} Nh6 {[%clk 00:01:40]} 18.
Be3 {[%clk 00:02:09]} Qd7 {[%clk 00:01:32]} {[%emt 00:00:11]} 19. Nb5 {[%clk
00:02:04]} {[%emt 00:00:06]} Nf7 {[%clk 00:01:32]} {[%emt 00:00:02]} 20. Nd2
{[%clk 00:02:03]} {[%emt 00:00:03]} Ba6 {[%clk 00:01:10]} {[%emt 00:00:24]} 21.
Bf1 {[%clk 00:01:50]} {[%emt 00:00:15]} f5 {[%clk 00:00:55]} {[%emt 00:00:17]}
22. exf5 {[%clk 00:01:48]} {[%emt 00:00:04]} gxf5 {[%clk 00:00:56]} 23. Nf3
{[%clk 00:01:38]} {[%emt 00:00:11]} Bf6 {[%clk 00:00:47]} {[%emt 00:00:12]} 24.
Kh2 {[%clk 00:01:20]} {[%emt 00:00:20]} Kh8 {[%clk 00:00:48]} 25. Nd2 {[%clk
00:01:07]} {[%emt 00:00:15]} Rg8 {[%clk 00:00:37]} {[%emt 00:00:13]} 26. f4
{[%clk 00:01:04]} {[%emt 00:00:04]} Rg7 {[%clk 00:00:38]} {[%emt 00:00:01]} 27.
Be2 {[%clk 00:01:05]} Rag8 {[%clk 00:00:33]} {[%emt 00:00:08]} 28. Rg1 {[%clk
00:01:06]} Bc8 {[%clk 00:00:30]} {[%emt 00:00:05]} 29. Rg2 {[%clk 00:00:55]}
{[%emt 00:00:13]} Qe7 {[%clk 00:00:30]} {[%emt 00:00:02]} 30. Rdg1 {[%clk
00:00:53]} {[%emt 00:00:04]} exf4 {[%clk 00:00:24]} {[%emt 00:00:09]} 31. Bxf4
{[%clk 00:00:54]} Ne5 {[%clk 00:00:25]} 32. Rf1 {[%clk 00:00:42]} {[%emt
00:00:13]} Bg5 {[%clk 00:00:20]} {[%emt 00:00:08]} 33. Qc3 {[%clk 00:00:35]}
{[%emt 00:00:09]} Bf6 {[%clk 00:00:17]} {[%emt 00:00:05]} 34. Qe3 {[%clk
00:00:35]} {[%emt 00:00:02]} Re8 {[%clk 00:00:16]} {[%emt 00:00:03]} 35. Nd4
{[%clk 00:00:34]} {[%emt 00:00:03]} Ng4+ {[%clk 00:00:09]} {[%emt 00:00:09]} 36.
hxg4 {[%clk 00:00:35]} {[%emt 00:00:01]} Qxe3 {[%clk 00:00:10]} 37. Bxe3 {[%clk
00:00:36]} {[%emt 00:00:01]} Rxe3 {[%clk 00:00:12]} 38. Nxf5 {[%clk 00:00:36]}
{[%emt 00:00:01]} Bxf5 {[%clk 00:00:13]} 39. Rxf5 {[%clk 00:00:37]} {[%emt
00:00:01]} Bxb2 {[%clk 00:00:14]} {[%emt 00:00:01]} 40. Nf3 {[%clk 00:00:20]}
{[%emt 00:00:20]} Ne4 {[%clk 00:00:12]} {[%emt 00:00:04]} 41. Bd1 {[%clk
00:00:18]} {[%emt 00:00:03]} Bxa3 {[%clk 00:00:08]} {[%emt 00:00:06]} 42. Bxa4
{[%clk 00:00:19]} {[%emt 00:00:01]} Rxg4 {[%clk 00:00:08]} {[%emt 00:00:02]} 43.
Bd7 {[%clk 00:00:15]} {[%emt 00:00:06]} Rg6 {[%clk 00:00:07]} {[%emt 00:00:03]}
44. Be6 {[%clk 00:00:15]} {[%emt 00:00:03]} Rf6 {[%clk 00:00:05]} {[%emt
00:00:04]} 45. Nh4 {[%clk 00:00:13]} {[%emt 00:00:03]} Bc5 {[%clk 00:00:04]}
{[%emt 00:00:03]} 46. Ra2 {[%clk 00:00:14]} {[%emt 00:00:01]} Ra3 {[%clk
00:00:04]} {[%emt 00:00:02]} 47. Re2 {[%clk 00:00:10]} {[%emt 00:00:05]} Nxg3
{[%clk 00:00:03]} {[%emt 00:00:03]} 48. Rxf6 {[%clk 00:00:12]} Nxe2 {[%clk
00:00:04]} 49. Nf5 {[%clk 00:00:11]} {[%emt 00:00:03]} Ra8 {[%clk 00:00:05]}
{[%emt 00:00:02]} 50. Rf7 {[%clk 00:00:12]} Nd4 {[%clk 00:00:04]} {[%emt
00:00:03]} 51. Rxc7 {[%clk 00:00:12]} {[%emt 00:00:01]} Nf3+ {[%clk 00:00:04]}
{[%emt 00:00:02]} 52. Kg3 {[%clk 00:00:13]} Ne5 {[%clk 00:00:06]} {[%emt
00:00:01]} 53. Nh6 {[%clk 00:00:12]} {[%emt 00:00:02]} Rf8 {[%clk 00:00:05]}
{[%emt 00:00:03]} 54. Nf7+ {[%clk 00:00:12]} {[%emt 00:00:01]} Nxf7 {[%clk
00:00:06]} {[%emt 00:00:01]} 55. Rxf7 {[%clk 00:00:13]} {[%emt 00:00:01]} Rg8+
{[%clk 00:00:05]} {[%emt 00:00:03]} 56. Kf3 {[%clk 00:00:13]} Ra8 {[%clk
00:00:05]} {[%emt 00:00:02]} 57. Bf5 {[%clk 00:00:13]} {[%emt 00:00:02]} Kg8
{[%clk 00:00:05]} {[%emt 00:00:02]} 58. Rxh7 {[%clk 00:00:13]} {[%emt
00:00:02]} Rf8 {[%clk 00:00:04]} {[%emt 00:00:04]} 59. Rh5 {[%clk 00:00:14]}
{[%emt 00:00:01]} Kg7 {[%clk 00:00:05]} 60. Kg4 {[%clk 00:00:12]} {[%emt
00:00:04]} Be3 {[%clk 00:00:06]} {[%emt 00:00:01]} 61. Rh3 {[%clk 00:00:11]}
{[%emt 00:00:02]} Bh6 {[%clk 00:00:05]} {[%emt 00:00:03]} 62. Rb3 {[%clk
00:00:12]} Rf7 {[%clk 00:00:04]} {[%emt 00:00:04]} 63. Rxb6 {[%clk 00:00:12]}
{[%emt 00:00:02]} Rf6 {[%clk 00:00:04]} {[%emt 00:00:02]} 64. Rb7+ {[%clk
00:00:12]} {[%emt 00:00:02]} Kf8 {[%clk 00:00:06]} 65. Be6 {[%clk 00:00:13]}
{[%emt 00:00:01]} Be3 {[%clk 00:00:06]} {[%emt 00:00:02]} 66. Kh5 {[%clk
00:00:12]} {[%emt 00:00:02]} Rh6+ {[%clk 00:00:07]} {[%emt 00:00:01]} 67. Kg4
{[%clk 00:00:13]} Rf6 {[%clk 00:00:09]} 68. Rc7 {[%clk 00:00:15]} {[%emt
00:00:01]} Rf4+ {[%clk 00:00:08]} {[%emt 00:00:03]} 69. Kg3 {[%clk 00:00:16]}
Rf6 {[%clk 00:00:07]} {[%emt 00:00:02]} 70. Rc6 {[%clk 00:00:16]} {[%emt
00:00:02]} Ke7 {[%clk 00:00:07]} {[%emt 00:00:02]} 71. Kg2 {[%clk 00:00:15]}
{[%emt 00:00:02]} Rf4 {[%clk 00:00:07]} {[%emt 00:00:02]} 72. Rc7+ {[%clk
00:00:16]} {[%emt 00:00:01]} Kf8 {[%clk 00:00:08]} 73. Kg3 {[%clk 00:00:16]}
{[%emt 00:00:02]} Rf6 {[%clk 00:00:09]} {[%emt 00:00:01]} 74. Kg4 {[%clk
00:00:17]} {[%emt 00:00:01]} Rf4+ {[%clk 00:00:10]} {[%emt 00:00:01]} 75. Kh5
{[%clk 00:00:18]} Rf6 {[%clk 00:00:12]} 76. Rd7 {[%clk 00:00:18]} {[%emt
00:00:02]} Bf4 {[%clk 00:00:08]} {[%emt 00:00:06]} 77. Kg4 {[%clk 00:00:18]}
{[%emt 00:00:03]} Ke8 {[%clk 00:00:05]} {[%emt 00:00:05]} 78. Rb7 {[%clk
00:00:14]} {[%emt 00:00:06]} Be3 {[%clk 00:00:06]} {[%emt 00:00:01]} 79. Rb3
{[%clk 00:00:14]} Bd2 {[%clk 00:00:05]} {[%emt 00:00:03]} 80. Bf5 {[%clk
00:00:15]} {[%emt 00:00:01]} Rh6 {[%clk 00:00:04]} {[%emt 00:00:03]} 81. Rb2
{[%clk 00:00:15]} {[%emt 00:00:02]} Bc3 {[%clk 00:00:04]} {[%emt 00:00:03]} 82.
Rb6 {[%clk 00:00:15]} {[%emt 00:00:01]} Bd4 {[%clk 00:00:05]} {[%emt 00:00:02]}
83. Ra6 {[%clk 00:00:16]} {[%emt 00:00:01]} Bc5 {[%clk 00:00:04]} {[%emt
00:00:03]} 84. Kg5 {[%clk 00:00:15]} {[%emt 00:00:03]} Be3+ {[%clk 00:00:05]}
85. Kg4 {[%clk 00:00:16]} Rf6 {[%clk 00:00:05]} {[%emt 00:00:03]} 86. Ra8+
{[%clk 00:00:14]} {[%emt 00:00:04]} Ke7 {[%clk 00:00:06]} 87. Rb8 {[%clk
00:00:15]} Rh6 {[%clk 00:00:06]} {[%emt 00:00:02]} 88. Rb7+ {[%clk 00:00:16]}
{[%emt 00:00:02]} Kf6 {[%clk 00:00:05]} {[%emt 00:00:03]} 89. Kf3 {[%clk
00:00:12]} {[%emt 00:00:06]} Bc5 {[%clk 00:00:05]} {[%emt 00:00:03]} 90. Be6
{[%clk 00:00:11]} {[%emt 00:00:02]} Ke5 {[%clk 00:00:06]} 91. Rf7 {[%clk
00:00:09]} {[%emt 00:00:03]} 1/2-1/2

[Event "Grandmaster Triathlon - Blitz (GM1)"]
[Site "Biel, Switzerland"]
[Date "2026.07.19"]
[Round "1.3"]
[White "Bluebaum, Matthias"]
[Black "Aronian, Levon"]
[Result "1/2-1/2"]
[TimeControl "3 min + 2 sec"]
[WhiteTitle "-"]
[BlackTitle "-"]
[WhiteFideId "24651516"]
[BlackFideId "13300474"]
[WhiteElo "2634"]
[BlackElo "2700"]

1. d4 {[%clk 00:03:03]} d5 {[%clk 00:03:03]} {[%emt 00:00:01]} 2. c4 {[%clk
00:03:04]} {[%emt 00:00:01]} c6 {[%clk 00:03:04]} {[%emt 00:00:01]} 3. Nf3
{[%clk 00:03:05]} Nf6 {[%clk 00:03:05]} {[%emt 00:00:01]} 4. Nc3 {[%clk
00:03:06]} {[%emt 00:00:01]} dxc4 {[%clk 00:03:06]} {[%emt 00:00:01]} 5. e4
{[%clk 00:03:07]} {[%emt 00:00:01]} b5 {[%clk 00:03:07]} {[%emt 00:00:01]} 6.
Qc2 {[%clk 00:03:08]} e6 {[%clk 00:03:08]} {[%emt 00:00:01]} 7. Be2 {[%clk
00:03:09]} {[%emt 00:00:01]} Be7 {[%clk 00:03:09]} 8. O-O {[%clk 00:03:09]}
{[%emt 00:00:02]} O-O {[%clk 00:03:08]} {[%emt 00:00:03]} 9. e5 {[%clk
00:03:10]} {[%emt 00:00:01]} Nd5 {[%clk 00:03:09]} 10. Ne4 {[%clk 00:03:11]}
{[%emt 00:00:01]} h6 {[%clk 00:03:06]} {[%emt 00:00:05]} 11. b3 {[%clk
00:03:12]} {[%emt 00:00:01]} Ba6 {[%clk 00:03:07]} 12. Bd2 {[%clk 00:03:09]}
{[%emt 00:00:06]} Nd7 {[%clk 00:03:07]} {[%emt 00:00:02]} 13. bxc4 {[%clk
00:02:54]} {[%emt 00:00:17]} bxc4 {[%clk 00:03:08]} 14. Bxc4 {[%clk 00:02:55]}
{[%emt 00:00:01]} Bxc4 {[%clk 00:03:08]} {[%emt 00:00:02]} 15. Qxc4 {[%clk
00:02:56]} {[%emt 00:00:01]} c5 {[%clk 00:02:53]} {[%emt 00:00:16]} 16. dxc5
{[%clk 00:02:44]} {[%emt 00:00:15]} Rc8 {[%clk 00:02:34]} {[%emt 00:00:21]} 17.
c6 {[%clk 00:02:23]} {[%emt 00:00:23]} Nb8 {[%clk 00:02:09]} {[%emt 00:00:26]}
18. Nd4 {[%clk 00:02:09]} {[%emt 00:00:16]} Nb6 {[%clk 00:01:49]} {[%emt
00:00:22]} 19. Qc3 {[%clk 00:01:55]} {[%emt 00:00:16]} Qd5 {[%clk 00:01:50]} 20.
Nf6+ {[%clk 00:01:17]} {[%emt 00:00:40]} gxf6 {[%clk 00:01:33]} {[%emt
00:00:19]} 21. Bxh6 {[%clk 00:01:18]} {[%emt 00:00:01]} Qxe5 {[%emt 00:00:20]}
22. Rae1 {[%clk 00:01:07]} Qh5 {[%clk 00:01:07]} {[%emt 00:00:22]} 23. Re3
{[%clk 00:00:45]} {[%emt 00:00:24]} Nd5 {[%clk 00:00:26]} {[%emt 00:00:43]} 24.
Rg3+ {[%clk 00:00:46]} {[%emt 00:00:01]} Kh7 {[%clk 00:00:27]} 25. Qd3+ {[%clk
00:00:40]} {[%emt 00:00:07]} Kxh6 {[%clk 00:00:28]} {[%emt 00:00:01]} 26. Rh3
{[%clk 00:00:42]} {[%emt 00:00:01]} Qxh3 {[%clk 00:00:22]} {[%emt 00:00:07]} 27.
Qxh3+ {[%clk 00:00:42]} {[%emt 00:00:01]} Kg7 {[%clk 00:00:24]} 28. Qg4+ {[%clk
00:00:43]} {[%emt 00:00:02]} Kh8 {[%clk 00:00:20]} {[%emt 00:00:06]} 29. Qh5+
{[%clk 00:00:43]} {[%emt 00:00:02]} Kg7 {[%clk 00:00:12]} {[%emt 00:00:09]} 30.
Qg4+ {[%clk 00:00:41]} {[%emt 00:00:04]} Kh8 {[%clk 00:00:13]} {[%emt
00:00:01]} 31. Qh5+ {[%clk 00:00:11]} {[%emt 00:00:31]} Kg7 {[%clk 00:00:15]}
32. Qg4+ {[%clk 00:00:10]} {[%emt 00:00:03]} Kh8 {[%clk 00:00:15]} {[%emt
00:00:01]} 1/2-1/2

[Event "Grandmaster Triathlon - Blitz (GM1)"]
[Site "Biel, Switzerland"]
[Date "2026.07.19"]
[Round "2.1"]
[White "Bluebaum, Matthias"]
[Black "Martinez Alcantara, Jose Eduardo"]
[Result "0-1"]
[TimeControl "3 min + 2 sec"]
[WhiteTitle "-"]
[BlackTitle "-"]
[WhiteFideId "24651516"]
[BlackFideId "3805662"]
[WhiteElo "2634"]
[BlackElo "2641"]

1. d4 {[%clk 00:03:03]} Nf6 {[%clk 00:03:03]} {[%emt 00:00:02]} 2. c4 {[%clk
00:03:04]} {[%emt 00:00:01]} d6 {[%clk 00:02:58]} {[%emt 00:00:06]} 3. Nf3
{[%clk 00:03:05]} {[%emt 00:00:01]} g6 {[%clk 00:02:59]} {[%emt 00:00:01]} 4.
Nc3 {[%clk 00:03:06]} Bf5 {[%clk 00:03:00]} {[%emt 00:00:01]} 5. Nh4 {[%clk
00:03:07]} Bd7 {[%clk 00:02:58]} {[%emt 00:00:04]} 6. e4 {[%clk 00:03:08]}
{[%emt 00:00:01]} e5 {[%clk 00:02:51]} {[%emt 00:00:09]} 7. Nf3 {[%clk
00:03:07]} {[%emt 00:00:03]} Nc6 {[%clk 00:02:52]} 8. d5 {[%clk 00:03:03]}
{[%emt 00:00:06]} Ne7 {[%clk 00:02:48]} {[%emt 00:00:05]} 9. c5 {[%clk
00:03:04]} {[%emt 00:00:01]} Bg7 {[%clk 00:02:48]} {[%emt 00:00:01]} 10. cxd6
{[%clk 00:03:05]} {[%emt 00:00:02]} cxd6 {[%clk 00:02:49]} 11. Be2 {[%clk
00:03:04]} {[%emt 00:00:03]} O-O {[%clk 00:02:48]} {[%emt 00:00:03]} 12. O-O
{[%clk 00:03:02]} {[%emt 00:00:03]} b5 {[%clk 00:02:45]} {[%emt 00:00:06]} 13.
b4 {[%clk 00:02:56]} {[%emt 00:00:08]} a5 {[%clk 00:02:45]} {[%emt 00:00:02]}
14. Rb1 {[%clk 00:02:53]} {[%emt 00:00:05]} Rc8 {[%clk 00:02:26]} {[%emt
00:00:21]} 15. Bd2 {[%clk 00:02:49]} {[%emt 00:00:06]} a4 {[%clk 00:02:23]}
{[%emt 00:00:04]} 16. Bd3 {[%clk 00:02:44]} {[%emt 00:00:07]} Qb6 {[%clk
00:02:23]} {[%emt 00:00:03]} 17. Qe2 {[%clk 00:02:43]} {[%emt 00:00:03]} Rb8
{[%clk 00:02:23]} {[%emt 00:00:02]} 18. Rbc1 {[%clk 00:02:35]} {[%emt
00:00:10]} Qb7 {[%clk 00:02:22]} {[%emt 00:00:03]} 19. Rc2 {[%clk 00:02:28]}
{[%emt 00:00:09]} Rfc8 {[%clk 00:02:12]} {[%emt 00:00:12]} 20. Rfc1 {[%clk
00:02:29]} {[%emt 00:00:01]} Nh5 {[%clk 00:02:10]} {[%emt 00:00:03]} 21. g3
{[%clk 00:02:13]} {[%emt 00:00:18]} h6 {[%clk 00:02:09]} {[%emt 00:00:03]} 22.
Nh4 {[%clk 00:01:57]} {[%emt 00:00:18]} Nf6 {[%clk 00:02:10]} {[%emt 00:00:01]}
23. Ng2 {[%clk 00:01:37]} {[%emt 00:00:22]} Kh8 {[%clk 00:01:45]} {[%emt
00:00:27]} 24. f3 {[%clk 00:01:32]} {[%emt 00:00:07]} Rf8 {[%clk 00:01:45]}
{[%emt 00:00:02]} 25. Ne3 {[%clk 00:01:27]} {[%emt 00:00:07]} Ne8 {[%clk
00:01:43]} {[%emt 00:00:04]} 26. Kh1 {[%clk 00:00:59]} {[%emt 00:00:30]} f5
{[%clk 00:01:19]} {[%emt 00:00:26]} 27. Ng2 {[%clk 00:01:00]} Nf6 {[%clk
00:01:08]} {[%emt 00:00:13]} 28. Nxb5 {[%clk 00:01:01]} {[%emt 00:00:02]} fxe4
{[%clk 00:00:55]} {[%emt 00:00:14]} 29. fxe4 {[%clk 00:01:01]} {[%emt
00:00:02]} Bxb5 {[%clk 00:00:52]} {[%emt 00:00:05]} 30. Rc7 {[%clk 00:01:02]}
{[%emt 00:00:01]} Qb6 {[%clk 00:00:38]} {[%emt 00:00:16]} 31. Rxe7 {[%clk
00:00:59]} {[%emt 00:00:05]} Bxd3 {[%clk 00:00:39]} 32. Qxd3 {[%clk 00:01:00]}
Ng4 {[%clk 00:00:40]} 33. Be3 {[%clk 00:00:58]} {[%emt 00:00:04]} Qxb4 {[%clk
00:00:37]} {[%emt 00:00:05]} 34. Nh4 {[%clk 00:00:44]} {[%emt 00:00:16]} Rf2
{[%clk 00:00:25]} {[%emt 00:00:14]} 35. h3 {[%clk 00:00:26]} {[%emt 00:00:20]}
Nxe3 {[%clk 00:00:16]} {[%emt 00:00:11]} 36. Qxe3 {[%clk 00:00:27]} {[%emt
00:00:01]} Qd4 {[%clk 00:00:17]} 37. Qxd4 {[%clk 00:00:07]} {[%emt 00:00:22]}
exd4 {[%clk 00:00:18]} {[%emt 00:00:02]} 38. Ng2 {[%clk 00:00:04]} {[%emt
00:00:05]} g5 {[%clk 00:00:17]} {[%emt 00:00:03]} 39. Rcc7 {[%clk 00:00:05]}
{[%emt 00:00:01]} Be5 {[%clk 00:00:14]} {[%emt 00:00:05]} 40. Rh7+ {[%clk
00:00:04]} {[%emt 00:00:03]} Kg8 {[%clk 00:00:16]} 41. Rxh6 {[%clk 00:00:03]}
{[%emt 00:00:03]} Rb1+ {[%clk 00:00:12]} {[%emt 00:00:06]} 42. Kh2 {[%clk
00:00:04]} Rff1 {[%clk 00:00:10]} {[%emt 00:00:04]} 43. Rg6+ {[%clk 00:00:04]}
{[%emt 00:00:03]} Kf8 {[%clk 00:00:11]} {[%emt 00:00:01]} 0-1